fUST/lending_fUST_20241103
["ID","MTS","AMOUNT","RATE_DAILY","PERIOD"]
[341203028,1730638238565,-3951.88423486,0.00026921,2]
[341203088,1730638240554,-15356.18255809,0.00026921,2]
[341203090,1730638240564,-420.0,0.00029106,2]
[341203092,1730638240574,-192.699,0.00029872,24]
[341203094,1730638240583,-1245.80595816,0.00029936,2]
[341203096,1730638240593,-542.37,0.0002999,3]
[341203098,1730638240603,-2144.26,0.0002999,10]
[341203100,1730638240613,-500.0,0.00029999,2]
[341203102,1730638240624,-160.0,0.0003,120]
[341203104,1730638240634,-30459.92248375,0.0003,2]
[341203118,1730638243476,-4321.78373404,0.0003,2]
[341203119,1730638243489,-4737.47282164,0.0003,2]
[341203125,1730638243611,-12.99373082,0.0003,2]
[341203139,1730638444091,165.677366,0.00013973,2]
[341203140,1730639167606,150.0,0.0002,2]
[341203141,1730639167982,150.0,0.00017,2]
[341203142,1730639253106,-199.839,0.00021203,2]
[341203143,1730639253129,-150.0,0.00022,2]
[341203144,1730639253149,-150.0,0.00025,2]
[341203145,1730639253168,-791.0136767,0.00027785,2]
[341203146,1730639253189,-173.1246715,0.00027945,2]
[341203147,1730639253209,-1613.57274518,0.00028,10]
[341203148,1730639253230,-150.0,0.00028,2]
[341203149,1730639253250,-163.74315951,0.00029936,2]
[341203150,1730639253270,-300.0,0.00029989,2]
[341203151,1730639253301,-197.354,0.0002999,24]
[341203152,1730639253323,-159.15,0.0002999,3]
[341203153,1730639253344,-477.47,0.0002999,3]
[341203154,1730639253364,-500.0,0.00029999,2]
[341203155,1730639253388,-101918.64529711,0.0003,2]
[341203229,1730639432767,-318.3,0.0002999,3]
[341203230,1730639432777,-645.83834818,0.0002999,10]
[341203231,1730639438778,-300.0,0.00029999,2]
[341203232,1730639438788,-110649.06260394,0.0003,2]
[341203233,1730639438798,-1090.08021339,0.00030036,2]
[341203234,1730639438809,-500.0,0.00030136,4]
[341203235,1730639438819,-2142.71,0.00030136,4]
[341203236,1730639438830,-500.0,0.00030136,4]
[341203237,1730639438840,-500.0,0.00030136,4]
[341203238,1730639438851,-1900.53,0.00030136,3]
[341203239,1730639438862,-500.0,0.00030136,4]
[341203240,1730639438871,-500.0,0.00030136,4]
[341203241,1730639438881,-500.0,0.00030136,2]
[341203242,1730639438890,-196.16722699,0.00030137,2]
[341203243,1730639438899,-500.0,0.0003041,4]
[341203244,1730639438910,-2142.71,0.0003041,4]
[341203245,1730639438919,-500.0,0.0003041,4]
[341203246,1730639438930,-500.0,0.0003041,4]
[341203247,1730639438939,-1900.53,0.0003041,3]
[341203248,1730639438952,-500.0,0.0003041,4]
[341203249,1730639438963,-500.0,0.0003041,4]
[341203250,1730639438972,-500.0,0.0003041,2]
[341203251,1730639438982,-500.0,0.00030684,4]
[341203252,1730639438993,-2142.71,0.00030684,4]
[341203253,1730639439004,-500.0,0.00030684,4]
[341203254,1730639439017,-219.95555442,0.00030684,4]
[341203255,1730639439028,-1900.53,0.00030684,3]
[341203256,1730639439037,-500.0,0.00030684,4]
[341203257,1730639439050,-500.0,0.00030684,4]
[341203258,1730639439061,-500.0,0.00030684,2]
[341203259,1730639439071,-500.0,0.00030958,4]
[341203260,1730639439081,-2142.71,0.00030958,4]
[341203261,1730639439092,-500.0,0.00030958,4]
[341203262,1730639439102,-1900.53,0.00030958,3]
[341203263,1730639439112,-500.0,0.00030958,4]
[341203264,1730639439121,-500.0,0.00030958,4]
[341203265,1730639439130,-500.0,0.00030958,2]
[341203266,1730639439139,-150.0,0.00031,2]
[341203267,1730639439148,-500.0,0.00031232,4]
[341203268,1730639439158,-2142.71,0.00031232,4]
[341203269,1730639439169,-500.0,0.00031232,4]
[341203270,1730639439180,-1900.53,0.00031232,3]
[341203271,1730639439190,-500.0,0.00031232,4]
[341203272,1730639439201,-500.0,0.00031232,4]
[341203273,1730639439211,-500.0,0.00031232,2]
[341203274,1730639439221,-150.0,0.0003127,2]
[341203275,1730639439233,-500.0,0.00031506,4]
[341203276,1730639439244,-2142.71,0.00031506,4]
[341203277,1730639439253,-500.0,0.00031506,4]
[341203278,1730639439266,-1900.53,0.00031506,3]
[341203279,1730639439275,-500.0,0.00031506,4]
[341203280,1730639439286,-500.0,0.00031506,4]
[341203281,1730639439297,-500.0,0.00031506,2]
[341203282,1730639439307,-1090.08021332,0.00031731,2]
[341203283,1730639439317,-500.0,0.0003178,4]
[341203284,1730639439327,-2142.71,0.0003178,4]
[341203285,1730639439335,-628.89527266,0.0003178,4]
[341203286,1730639439347,-1900.53,0.0003178,3]
[341203287,1730639439357,-500.0,0.0003178,4]
[341203288,1730639439366,-500.0,0.0003178,4]
[341203289,1730639439377,-500.0,0.0003178,2]
[341203290,1730639439389,-999.0,0.00031945,120]
[341203291,1730639439399,-160.0,0.00032,120]
[341203292,1730639439408,-500.0,0.00032054,4]
[341203293,1730639439419,-2142.71,0.00032054,4]
[341203294,1730639439428,-1900.53,0.00032054,3]
[341203295,1730639439437,-454.9886289,0.00032054,4]
[341203296,1730639439449,-500.0,0.00032054,4]
[341203297,1730639439458,-500.0,0.00032054,2]
[341203298,1730639439467,-500.0,0.00032328,4]
[341203299,1730639439479,-2142.71,0.00032328,4]
[341203300,1730639439488,-1900.53,0.00032328,3]
[341203301,1730639439497,-500.0,0.00032328,4]
[341203302,1730639439507,-500.0,0.00032328,2]
[341203303,1730639439516,-420.0,0.00032332,2]
[341203304,1730639439526,-572.62185272,0.00032602,4]
[341203305,1730639439538,-2142.71,0.00032602,4]
[341203306,1730639439550,-1900.53,0.00032602,3]
[341203307,1730639439561,-500.0,0.00032602,4]
[341203308,1730639439571,-500.0,0.00032602,2]
[341203309,1730639439583,-500.0,0.00032739,2]
[341203310,1730639439594,-500.0,0.00032876,7]
[341203311,1730639439604,-2142.71,0.00032876,4]
[341203312,1730639439613,-1900.53,0.00032876,3]
[341203313,1730639439624,-500.0,0.00032876,4]
[341203314,1730639439635,-500.0,0.00032876,2]
[341203315,1730639439645,-176.694851,0.00032877,120]
[341203316,1730639439656,-1000.0,0.00032971,2]
[341203317,1730639439665,-185.284807,0.00032971,14]
[341203318,1730639439675,-185.284807,0.00032971,14]
[341203319,1730639439686,-183.147271,0.00033,14]
[341203320,1730639439697,-183.147271,0.00033,14]
[341203321,1730639439706,-781.80695574,0.0003307,2]
[341203322,1730639439715,-168815.97930265,0.00033071,2]
[341203323,1730639439725,-151.0,0.00033071,14]
[341203324,1730639439734,-183.147271,0.00033071,14]
[341203325,1730639439743,-183.147271,0.00033071,14]
[341203326,1730639439753,-251.774132,0.00033071,14]
[341203327,1730639439763,-251.774132,0.00033071,14]
[341203328,1730639439772,-185.284807,0.00033071,14]
[341203329,1730639439782,-185.284807,0.00033071,14]
[341203330,1730639439791,-151.0,0.00033071,14]
[341203331,1730639439800,-500.0,0.00033073,5]
[341203332,1730639439809,-500.0,0.00033073,5]
[341203333,1730639439819,-164.812986,0.000331,16]
[341203334,1730639439828,-150.112233,0.000331,10]
[341203335,1730639439838,-150.112233,0.000331,20]
[341203336,1730639439848,-500.0,0.00033125,3]
[341203337,1730639439858,-500.0,0.00033125,3]
[341203338,1730639439868,-500.0,0.00033125,3]
[341203339,1730639439878,-500.0,0.00033125,3]
[341203340,1730639439888,-500.0,0.00033125,3]
[341203341,1730639439898,-500.0,0.00033125,3]
[341203342,1730639439908,-500.0,0.00033125,3]
[341203343,1730639439918,-500.0,0.00033125,3]
[341203344,1730639439927,-500.0,0.00033125,3]
[341203345,1730639439936,-500.0,0.00033125,3]
[341203346,1730639439949,-1000.0,0.00033143,2]
[341203347,1730639439958,-2142.71,0.0003315,4]
[341203348,1730639439967,-1900.53,0.0003315,3]
[341203349,1730639439976,-500.0,0.0003315,4]
[341203350,1730639439987,-500.0,0.0003315,2]
[341203351,1730639439997,-5000.0,0.00033164,30]
[341203352,1730639440008,-613.0,0.000332,2]
[341203353,1730639440020,-1000.0,0.00033232,2]
[341203354,1730639440030,-676.77728003,0.00033236,2]
[341203355,1730639440040,-1000.0,0.00033263,2]
[341203356,1730639440051,-1000.0,0.00033276,2]
[341203357,1730639440063,-26290.64712926,0.000333,2]
[341203358,1730639440072,-151.0,0.000333,14]
[341203359,1730639440082,-230.790012,0.000333,14]
[341203360,1730639440093,-183.147271,0.000333,14]
[341203361,1730639440103,-183.147271,0.000333,14]
[341203362,1730639440112,-251.774132,0.000333,14]
[341203363,1730639440123,-251.774132,0.000333,14]
[341203364,1730639440133,-185.284807,0.000333,14]
[341203366,1730639440143,-185.284807,0.000333,14]
[341203368,1730639440152,-151.0,0.000333,14]
[341203370,1730639440162,-1000.0,0.00033306,2]
[341203373,1730639440182,-1000.0,0.00033334,2]
[341203375,1730639440194,-1000.0,0.00033338,2]
[341203377,1730639440203,-1000.0,0.0003335,2]
[341203379,1730639440213,-1167.75,0.000334,30]
[341203381,1730639440223,-2816.14,0.000334,2]
[341203383,1730639440232,-150.0,0.000334,15]
[341203385,1730639440241,-150.0,0.000334,2]
[341203387,1730639440251,-770.0953,0.000334,2]
[341203389,1730639440261,-770.0953,0.000334,2]
[341203391,1730639440270,-500.0,0.000334,30]
[341203393,1730639440280,-303.38396351,0.00033405,120]
[341203395,1730639440290,-449.93554945,0.00033405,12]
[341203397,1730639440299,-10000.0,0.00033405,30]
[341203400,1730639440309,-160.7,0.00033408,30]
[341203402,1730639440319,-151.0,0.00033409,14]
[341203404,1730639440328,-183.147271,0.00033409,14]
[341203405,1730639440338,-183.147271,0.00033409,14]
[341203406,1730639440348,-185.284807,0.00033409,14]
[341203407,1730639440360,-185.284807,0.00033409,14]
[341203409,1730639440370,-2541.63050514,0.00033409,4]
[341203410,1730639440379,-150.0,0.0003341,30]
[341203411,1730639440389,-206.537693,0.0003341,14]
[341203412,1730639440400,-251.774132,0.0003341,14]
[341203413,1730639440410,-251.774132,0.0003341,14]
[341203414,1730639440420,-151.0,0.0003341,14]
[341203416,1730639440432,-14082.89653427,0.0003341,30]
[341203417,1730639440445,-5000.0,0.0003341,30]
[341203418,1730639440467,-648.17975016,0.00033416,10]
[341203421,1730639440520,-141704.51207144,0.00033416,10]
[341203422,1730639440530,-350819.14299449,0.00033416,7]
[341203424,1730639440541,-3800.87268387,0.00033416,2]
[341203426,1730639440551,-345.59030635,0.00033416,2]
[341203428,1730639440560,-22294.20548099,0.00033416,2]
[341203430,1730639440573,-232.28965717,0.00033416,10]
[341203432,1730639440584,-1054.74623718,0.00033416,2]
[341203434,1730639440595,-7225.9862577,0.00033416,2]
[341203436,1730639440606,-1056.99171336,0.00033416,10]
[341203438,1730639440618,-4594.21468944,0.00033416,2]
[341203440,1730639440628,-200.0,0.00033416,10]
[341203443,1730639440639,-5512.11278198,0.00033416,3]
[341203445,1730639440649,-4224.41274473,0.00033416,2]
[341203447,1730639440660,-200.2,0.00033416,2]
[341203449,1730639440671,-5006.2826065,0.00033416,2]
[341203451,1730639440681,-35049.62149728,0.00033416,2]
[341203454,1730639440693,-2949.31389324,0.00033416,7]
[341203456,1730639440704,-2393.0274327,0.00033416,2]
[341203458,1730639440714,-61445.40555509,0.00033416,7]
[341203460,1730639440723,-183.147271,0.00033416,14]
[341203462,1730639440733,-183.147271,0.00033416,14]
[341203463,1730639440743,-183.147271,0.00033416,14]
[341203465,1730639440752,-183.147271,0.00033416,14]
[341203467,1730639440763,-183.147271,0.00033416,14]
[341203468,1730639440772,-183.147271,0.00033416,14]
[341203469,1730639440782,-183.147271,0.00033416,14]
[341203470,1730639440791,-183.147271,0.00033416,14]
[341203471,1730639440800,-183.147271,0.00033416,14]
[341203472,1730639440810,-183.147271,0.00033416,14]
[341203473,1730639440819,-183.147271,0.00033416,14]
[341203474,1730639440829,-183.147277,0.00033416,14]
[341203475,1730639440844,-251.774132,0.00033416,14]
[341203476,1730639440866,-251.774132,0.00033416,14]
[341203477,1730639440890,-251.774132,0.00033416,14]
[341203478,1730639440913,-251.774132,0.00033416,14]
[341203479,1730639440935,-251.774132,0.00033416,14]
[341203480,1730639440967,-251.774132,0.00033416,14]
[341203481,1730639440990,-251.774132,0.00033416,14]
[341203482,1730639441012,-251.774132,0.00033416,14]
[341203483,1730639441034,-251.774132,0.00033416,14]
[341203484,1730639441058,-251.774132,0.00033416,14]
[341203485,1730639441188,-185.284807,0.00033416,14]
[341203486,1730639441202,-185.284807,0.00033416,14]
[341203487,1730639441213,-185.284807,0.00033416,14]
[341203488,1730639441222,-185.284807,0.00033416,14]
[341203489,1730639441232,-185.284807,0.00033416,14]
[341203490,1730639441242,-185.284807,0.00033416,14]
[341203491,1730639441251,-185.284807,0.00033416,14]
[341203492,1730639441261,-185.284807,0.00033416,14]
[341203493,1730639441270,-185.284807,0.00033416,14]
[341203494,1730639441280,-185.284807,0.00033416,14]
[341203495,1730639441289,-185.284807,0.00033416,14]
[341203496,1730639441299,-185.28481615,0.00033416,14]
[341203497,1730639441308,-151.0,0.00033416,14]
[341203498,1730639441319,-612.62,0.00033416,30]
[341203499,1730639441329,-2142.71,0.00033424,4]
[341203500,1730639441339,-1900.53,0.00033424,3]
[341203501,1730639441348,-500.0,0.00033424,4]
[341203502,1730639441362,-500.0,0.00033424,2]
[341203503,1730639441371,-1090.08021332,0.00033426,2]
[341203504,1730639441382,-9223.19848897,0.00033442,40]
[341203505,1730639441395,-500.0,0.00033473,5]
[341203506,1730639441404,-5000.0,0.00033499,30]
[341203507,1730639441414,-4689.09,0.000335,30]
[341203508,1730639441425,-5981.72,0.000335,30]
[341203509,1730639441436,-13160.9,0.000335,30]
[341203510,1730639441450,-1728.26,0.000335,30]
[341203511,1730639441460,-251.774132,0.000335,14]
[341203512,1730639441469,-251.774132,0.000335,14]
[341203513,1730639441478,-500.0,0.00033561,10]
[341203514,1730639441488,-500.0,0.00033674,30]
[341203515,1730639441497,-2142.71,0.00033698,4]
[341203516,1730639441506,-1900.53,0.00033698,3]
[341203517,1730639441515,-303.89743866,0.00033698,4]
[341203518,1730639441526,-500.0,0.00033698,2]
[341203519,1730639441535,-215.54754758,0.00033753,2]
[341203520,1730639441545,-12246.50716983,0.00033779,2]
[341203521,1730639441554,-5000.0,0.00033838,30]
[341203522,1730639441564,-251.774132,0.00033838,14]
[341203523,1730639441573,-251.774132,0.00033838,14]
[341203524,1730639441582,-9300.81,0.000339,5]
[341203525,1730639441592,-500.0,0.00033948,30]
[341203526,1730639441601,-2142.71,0.00033972,4]
[341203527,1730639441611,-1900.53,0.00033972,3]
[341203528,1730639441620,-5271.14,0.00033972,120]
[341203529,1730639441630,-500.0,0.00033972,2]
[341203530,1730639441639,-27532.11187534,0.0003398,4]
[341203531,1730639441650,-299.7,0.00034,120]
[341203532,1730639441660,-10276.32679192,0.00034,10]
[341203533,1730639441669,-1000.0,0.00034,2]
[341203534,1730639441679,-150.0,0.00034,2]
[341203535,1730639441689,-7846.79676977,0.0003412,2]
[341203536,1730639441700,-3171.05632195,0.00034179,30]
[341203537,1730639441713,-1459.82367805,0.00034179,30]
[341203538,1730639441722,-500.0,0.00034222,30]
[341203539,1730639441731,-500.0,0.00034246,13]
[341203540,1730639441740,-2142.71,0.00034246,4]
[341203541,1730639441750,-1900.53,0.00034246,3]
[341203542,1730639441759,-500.0,0.00034246,2]
[341203543,1730639441768,-150.0,0.0003427,2]
[341203544,1730639441777,-151.0,0.00034274,120]
[341203545,1730639441786,-151.0,0.00034274,120]
[341203546,1730639441795,-150.0,0.000344,2]
[341203547,1730639441804,-1000.0,0.00034442,5]
[341203548,1730639441813,-1000.0,0.00034442,5]
[341203549,1730639441822,-671.23091293,0.00034496,30]
[341203550,1730639441833,-1000.0,0.00034499,2]
[341203551,1730639441843,-1334.66,0.000345,30]
[341203552,1730639441852,-2142.71,0.0003452,4]
[341203553,1730639441861,-1900.53,0.0003452,3]
[341203554,1730639441870,-500.0,0.0003452,2]
[341203555,1730639441879,-151.0,0.00034611,15]
[341203556,1730639441888,-2142.71,0.00034794,4]
[341203557,1730639441898,-1900.53,0.00034794,3]
[341203558,1730639441908,-500.0,0.00034794,2]
[341203559,1730639441917,-257.69,0.000348,60]
[341203560,1730639441927,-1000.0,0.000348,3]
[341203561,1730639441937,-3036.56151565,0.00034802,48]
[341203562,1730639441948,-8046.76133152,0.0003481,48]
[341203563,1730639441957,-5000.0,0.00034813,49]
[341203564,1730639441968,-1103.58139657,0.00034842,5]
[341203565,1730639441978,-587.0,0.00034847,2]
[341203566,1730639441987,-500.0,0.00034931,16]
[341203567,1730639441997,-5271.14,0.00034931,120]
[341203568,1730639442009,-1000.0,0.00034999,2]
[341203569,1730639442019,-509.93992323,0.00035,10]
[341203570,1730639442028,-500.0,0.00035,10]
[341203571,1730639442037,-500.0,0.00035,10]
[341203572,1730639442047,-500.0,0.00035,10]
[341203573,1730639442058,-500.0,0.00035,10]
[341203574,1730639442067,-500.0,0.00035,10]
[341203575,1730639442077,-695.72139333,0.00035,10]
[341203576,1730639442088,-543.37520172,0.00035,10]
[341203577,1730639442098,-500.0,0.00035,10]
[341203578,1730639442107,-506.65464145,0.00035,10]
[341203579,1730639442117,-500.0,0.00035,10]
[341203580,1730639442126,-500.0,0.00035,10]
[341203581,1730639442136,-500.0,0.00035,10]
[341203582,1730639442145,-500.0,0.00035,10]
[341203583,1730639442156,-500.0,0.00035,10]
[341203584,1730639442166,-500.0,0.00035,10]
[341203585,1730639442176,-500.0,0.00035,10]
[341203586,1730639442185,-500.0,0.00035,10]
[341203587,1730639442196,-500.0,0.00035,10]
[341203588,1730639442205,-528.59762023,0.00035,10]
[341203589,1730639442215,-500.0,0.00035,10]
[341203590,1730639442224,-500.0,0.00035,10]
[341203591,1730639442233,-500.0,0.00035,10]
[341203592,1730639442242,-533.71357445,0.00035,10]
[341203593,1730639442251,-500.0,0.00035,10]
[341203594,1730639442261,-578.62304498,0.00035,10]
[341203595,1730639442271,-500.0,0.00035,10]
[341203596,1730639442280,-500.0,0.00035,10]
[341203597,1730639442290,-921.03626026,0.00035,10]
[341203598,1730639442300,-4689.09,0.00035,30]
[341203599,1730639442309,-5981.72,0.00035,30]
[341203600,1730639442318,-4270.92639563,0.00035,30]
[341203601,1730639442332,-8889.97360437,0.00035,30]
[341203602,1730639442341,-1167.75,0.00035,30]
[341203603,1730639442351,-150.0,0.00035,69]
[341203604,1730639442360,-134302.87726181,0.00035,5]
[341203605,1730639442369,-159.0,0.00035,2]
[341203606,1730639442379,-801.12341582,0.00035,2]
[341203607,1730639442388,-4110.0,0.00035,30]
[341203608,1730639442399,-10069.62957024,0.00035,10]
[341203609,1730639442408,-505.97453233,0.00035,30]
[341203610,1730639442418,-161.56360144,0.00035,5]
[341203611,1730639442427,-151.0,0.00035,15]
[341203612,1730639442437,-4077.37977041,0.00035,30]
[341203613,1730639442447,-5000.0,0.00035,7]
[341203614,1730639442456,-44461.64912358,0.0003503,2]
[341203615,1730639442591,-1265.61,0.0002999,10]
[341203616,1730639442600,-3499.00910329,0.0003503,2]
[341203617,1730639442610,-2142.71,0.00035068,4]
[341203618,1730639442618,-1000.0,0.00035068,116]
[341203619,1730639442628,-1000.0,0.00035068,116]
[341203620,1730639442637,-1000.0,0.00035068,116]
[341203621,1730639442646,-1000.0,0.00035068,116]
[341203622,1730639442655,-975.32784671,0.00035068,116]
[341203628,1730639444523,-24.67215329,0.00035068,116]
[341203629,1730639444533,-1000.0,0.00035068,116]
[341203630,1730639444542,-1000.0,0.00035068,116]
[341203631,1730639444552,-1000.0,0.00035068,116]
[341203632,1730639444561,-1000.0,0.00035068,116]
[341203633,1730639444571,-1000.0,0.00035068,116]
[341203634,1730639444580,-1000.0,0.00035068,116]
[341203636,1730639444589,-182.1382092,0.00035068,116]
[341203637,1730639444598,-1900.53,0.00035068,3]
[341203639,1730639444608,-500.0,0.00035068,2]
[341203641,1730639444617,-1728.26,0.000351,30]
[341203643,1730639444626,-1090.08021332,0.00035121,2]
[341203644,1730639444635,-2142.71,0.00035342,4]
[341203645,1730639444644,-1900.53,0.00035342,3]
[341203646,1730639444653,-500.0,0.00035342,2]
[341203647,1730639444662,-300.0,0.000354,11]
[341203648,1730639444671,-500.0,0.00035479,2]
[341203649,1730639444682,-642.825,0.00035581,7]
[341203650,1730639444691,-500.0,0.00035616,19]
[341203651,1730639444720,-2142.71,0.00035616,4]
[341203652,1730639444748,-1900.53,0.00035616,3]
[341203653,1730639444770,-1000.0,0.00035616,120]
[341203654,1730639444792,-1000.0,0.00035616,120]
[341203655,1730639444814,-1000.0,0.00035616,120]
[341203656,1730639444837,-1000.0,0.00035616,120]
[341203657,1730639444860,-375.05862504,0.00035616,120]
[341203658,1730639444883,-2000.0,0.00035616,120]
[341203659,1730639444923,-2000.0,0.00035616,120]
[341203660,1730639444951,-2000.0,0.00035616,120]
[341203661,1730639444960,-2000.0,0.00035616,120]
[341203662,1730639444970,-2000.0,0.00035616,120]
[341203663,1730639444979,-2000.0,0.00035616,120]
[341203664,1730639444988,-1201.30823497,0.00035616,120]
[341203665,1730639444998,-500.0,0.00035616,30]
[341203666,1730639445008,-151.0,0.00035699,120]
[341203667,1730639445019,-154.63,0.000357,31]
[341203668,1730639445029,-154.63,0.000357,31]
[341203669,1730639445039,-154.63,0.000357,31]
[341203670,1730639445048,-154.63,0.000357,31]
[341203671,1730639445058,-154.63,0.000357,31]
[341203672,1730639445069,-154.63,0.000357,31]
[341203673,1730639445079,-154.63,0.000357,31]
[341203674,1730639445098,-4541.50938479,0.0003577,2]
[341203675,1730639445120,-25692.88390377,0.000358,2]
[341203676,1730639445143,-506.58191031,0.0003589,30]
[341203677,1730639445166,-2142.71,0.0003589,4]
[341203678,1730639445188,-1900.53,0.0003589,3]
[341203679,1730639445211,-1000.0,0.0003589,120]
[341203680,1730639445229,-5271.14,0.0003589,120]
[341203681,1730639445251,-16118.93212671,0.00035988,2]
[341203682,1730639445273,-3519.0,0.00036,5]
[341203683,1730639445297,-200.0,0.00036,120]
[341203684,1730639445319,-7695.26835644,0.00036,2]
[341203685,1730639445335,-200.0,0.000361,120]
[341203686,1730639445345,-500.0,0.00036164,5]
[341203687,1730639445356,-2142.71,0.00036164,4]
[341203688,1730639445365,-1900.53,0.00036164,3]
[341203689,1730639445375,-1000.0,0.00036164,120]
[341203690,1730639445384,-223.0,0.000362,120]
[341203691,1730639445393,-200.15331968,0.0003621,2]
[341203692,1730639445403,-260.30740512,0.0003624,2]
[341203693,1730639445414,-4689.09,0.000363,30]
[341203694,1730639445423,-5981.72,0.000363,30]
[341203695,1730639445434,-13160.9,0.000363,30]
[341203696,1730639445445,-500.0,0.00036301,22]
[341203697,1730639445455,-300.0,0.000364,13]
[341203698,1730639445466,-1728.26,0.000364,30]
[341203699,1730639445476,-1167.75,0.000364,30]
[341203700,1730639445486,-151.0,0.00036411,120]
[341203701,1730639445495,-500.0,0.00036438,5]
[341203702,1730639445505,-1775.78339736,0.00036438,4]
[341203703,1730639446746,-500.0,0.00033073,5]
[341203704,1730639446756,-505.34095614,0.00034442,5]
[341203705,1730639446765,-367.09994406,0.00036438,4]
[341203706,1730639446774,-1900.75590502,0.00036438,3]
[341203707,1730639446783,-1000.0,0.00036438,120]
[341203708,1730639446792,-215.03,0.00036712,5]
[341203709,1730639446801,-355.72188394,0.00036712,120]
[341203710,1730639446811,-1090.08021332,0.00036815,2]
[341203711,1730639446820,-5271.14,0.00036849,120]
[341203712,1730639446829,-150.0,0.00036938,5]
[341203713,1730639446839,-1500.0,0.00036947,5]
[341203714,1730639446848,-500.0,0.00036986,25]
[341203715,1730639446857,-6922.19785752,0.00037,20]
[341203716,1730639446869,-13077.80214248,0.00037,20]
[341203717,1730639446877,-1000.0,0.00037,120]
[341203718,1730639446886,-150.0,0.00037,2]
[341203719,1730639446896,-150.0,0.00037009,4]
[341203720,1730639446905,-151.0,0.00037123,120]
[341203721,1730639446914,-4251.44706739,0.00037146,61]
[341203722,1730639446923,-5039.46016907,0.00037178,58]
[341203723,1730639446932,-3381.63300256,0.00037231,61]
[341203724,1730639446941,-5000.0,0.00037245,58]
[341203725,1730639446952,-5000.0,0.00037245,56]
[341203726,1730639446960,-5000.0,0.00037245,60]
[341203727,1730639446971,-5000.0,0.00037245,62]
[341203728,1730639446980,-5000.0,0.00037245,61]
[341203729,1730639446989,-150.0,0.0003727,2]
[341203730,1730639446998,-300.0,0.000374,14]
[341203731,1730639447009,-250.0,0.00037486,5]
[341203732,1730639447018,-500.0,0.000375,2]
[341203733,1730639447027,-517.0,0.000375,4]
[341203734,1730639447037,-200.2,0.000375,112]
[341203735,1730639447047,-18157.19874414,0.000375,60]
[341203736,1730639447134,-823.0,0.00037557,2]
[341203737,1730639447144,-250.0,0.00037557,4]
[341203738,1730639447153,-4689.09,0.000376,30]
[341203739,1730639447163,-5981.72,0.000376,30]
[341203740,1730639447172,-13160.9,0.000376,30]
[341203741,1730639447181,-500.0,0.00037671,28]
[341203742,1730639447191,-200.0,0.000378,120]
[341203743,1730639447200,-1728.26,0.000378,30]
[341203744,1730639447210,-1167.75,0.000378,30]
[341203745,1730639447218,-5271.14,0.00037808,120]
[341203746,1730639447227,-674.87972865,0.00038,10]
[341203747,1730639447236,-700.05057052,0.00038,3]
[341203748,1730639447247,-1547.17,0.00038,10]
[341203749,1730639447256,-2170.085,0.00038,120]
[341203750,1730639447265,-200.0,0.00038,120]
[341203751,1730639447275,-165.98151876,0.00038,120]
[341203752,1730639447284,-299.34828681,0.00038034,5]
[341203753,1730639447293,-350.0,0.00038105,4]
[341203754,1730639447303,-500.0,0.00038218,2]
[341203755,1730639447312,-11032.99858499,0.000383,30]